Cogmind - Beta 10 @@@ ROGUE MODE // 2020.09.16 @ 17:24:13 Player: Terminus Result: Self-destructed Performance ------------- Evolutions (7) 3500 Regions Visited (29) 5800 Robots Destroyed (294) 1470 Value Destroyed (11950) 11950 Prototype IDs (47) 940 Alien Tech Used (1) 200 Bonus (6249) 6249 TOTAL SCORE: 30109 Bonus ------- High Alert Combat Kills 1189 Follower Combat Kills 2673 Network Hubs Disabled 200 Met Data Miner 300 Met Imprinter 300 Met Warlord at Base 500 MAIN.C Attacked Warlord 500 Warlord Defense Kill 100 Built Enhanced Grunts 300 A7 Reached Mainframe 300 Met R17 at Cetus 500 Friendly Fire -613 Cogmind --------- Core Integrity 920/1300 Matter 237/300 Energy 56/180 System Corruption 1% Temperature Cool (0) Movement Hovering (68) Location -3/Research Parts ------- > --- POWER (1) -------- Light Particle Reactor > --- PROPULSION (4) --- Combat Antigrav System Combat Antigrav System Combat Antigrav System Combat Antigrav System > --- UTILITY (14) ----- Experimental Cooling System Large Storage Unit Large Storage Unit Large Storage Unit Long-range Sensor Array Experimental Signal Interpreter Experimental Targeting Computer Improved Target Analyzer Advanced Armor Integrity Analyzer Centrium Medium Armor Plating Improved Hacking Suite Advanced Hacking Suite Advanced Hacking Suite > --- WEAPON (3) ------- Helical Railgun Compact Tesla Bomb Launcher Plasma Lance > --- INVENTORY (22) --- Combat Antigrav System Combat Antigrav System Experimental Matter Compressor (500) Advanced Sensor Array Improved Salvage Targeting Computer Experimental Targeting Computer Experimental Target Analyzer Experimental Phase Shifter Centrium Medium Armor Plating Centrium Medium Armor Plating Hacking Suite Advanced System Shield Proton Cannon Compact HERF Cannon Heavy Plasma Cannon Force Lance Peak State ------------ > --- POWER ------------ Heavy Antimatter Reactor > --- PROPULSION ------- Combat Antigrav System Combat Antigrav System Combat Antigrav System Combat Antigrav System > --- UTILITY ---------- Experimental Cooling System Large Storage Unit Large Storage Unit Large Storage Unit Experimental Signal Interpreter Improved Target Analyzer Advanced Armor Integrity Analyzer Centrium Medium Armor Plating Improved Hacking Suite Advanced Hacking Suite Advanced Hacking Suite Advanced Hacking Suite Advanced Hacking Suite Improved System Shield > --- WEAPON ----------- Helical Railgun Helical Railgun Compact Tesla Bomb Launcher > --- INVENTORY -------- Quantum Reactor Combat Antigrav System Combat Antigrav System Advanced Energy Well Experimental Matter Compressor Advanced Sensor Array Long-range Sensor Array Improved Salvage Targeting Computer Experimental Targeting Computer Experimental Targeting Computer Experimental Target Analyzer Experimental Phase Shifter Centrium Medium Armor Plating Centrium Medium Armor Plating Hacking Suite Advanced System Shield Proton Cannon Heavy Plasma Cannon Hypervelocity Railgun Compact Tesla Bomb Launcher Force Lance Plasma Lance [Rating: 153] Favorites ----------- Power Heavy Antimatter Reactor Engine Improved Deuterium Engine Power Core Fission Core Reactor Heavy Antimatter Reactor Propulsion Combat Gravmag System Leg Titanium Leg Hover Unit Combat Gravmag System Utility Large Storage Unit Device Makeshift Sensor Array Storage Large Storage Unit Processor Advanced Signal Interpreter Hackware Hacking Suite Protection Layered Medium Armor Plating Weapon Hypervelocity Gauss Rifle Energy Gun EM Pulse Gun Energy Cannon Advanced Beam Cannon Ballistic Gun Hypervelocity Gauss Rifle Ballistic Cannon Heavy Gauss Cannon Launcher Advanced EMP Blaster Special Weapon Improved Remote Datajack Impact Weapon Hammer Slashing Weapon Ripper Piercing Weapon Spear Build | -11 -10 -10 -9 -9 -8 -7 -7 -7 -7 -6 -6 -6 -6 -5 -5 -5 -5 -5 -5 -5 -4 -4 -4 -4 -4 -4 -4 -4 -3 ------- Run | Scr Mat Min Mat Min Mat Fac Low Low Dat Pro Fac Low Zio Pro Fac Was Fac Upp Upp War Pro Fac Was Fac Ext Cet Arc Hub Res Slots Evolved 14 | . . . 2 . 2 2 . . . . 2 . . . 2 . . . . . . 2 . . . . . . 2 Power . | . . . . . . . . . . . . . . . . . . . . . . . . . . . . . . Propulsion 2 | . . . . . 1 . . . . . . . . . 1 . . . . . . . . . . . . . . Utility 12 | . . . 2 . 1 2 . . . . 2 . . . 1 . . . . . . 2 . . . . . . 2 Weapon . | . . . . . . . . . . . . . . . . . . . . . . . . . . . . . . Parts Attached 290 | 8 7 6 29 8 30 23 3 2 7 5 27 . . 2 13 . 4 6 2 9 4 18 . 6 . 16 1 7 47 Power 20 | 1 . 1 3 . 1 1 . 1 . . 3 . . . 2 . . . . 1 . 1 . . . 1 . . 4 Engine 10 | 1 . 1 3 . 1 1 . 1 . . 2 . . . . . . . . . . . . . . . . . . Core 4 | . . . . . . . . . . . 1 . . . 2 . . . . . . . . . . . . . 1 Reactor 6 | . . . . . . . . . . . . . . . . . . . . 1 . 1 . . . 1 . . 3 Propulsion 32 | 2 1 . 3 1 6 3 . . . . 1 . . . 5 . . . . 2 . . . . . 1 . 1 6 Treads . | . . . . . . . . . . . . . . . . . . . . . . . . . . . . . . Leg 12 | 2 . . 3 1 6 . . . . . . . . . . . . . . . . . . . . . . . . Wheel . | . . . . . . . . . . . . . . . . . . . . . . . . . . . . . . Hover 20 | . 1 . . . . 3 . . . . 1 . . . 5 . . . . 2 . . . . . 1 . 1 6 Flight . | . . . . . . . . . . . . . . . . . . . . . . . . . . . . . . Utility 88 | 2 3 1 8 1 7 8 2 1 4 . 9 . . . 2 . 4 1 . 2 . 9 . 1 . 4 1 2 16 Device 28 | . 1 . 2 . 2 3 1 1 1 . 3 . . . . . . . . . . 3 . 1 . 3 . 1 6 Storage 14 | 1 2 . 3 . 2 . . . 1 . 1 . . . . . 1 . . 1 . . . . . . . . 2 Processor 6 | . . . . . . 1 . . . . . . . . . . . . . . . 1 . . . . . . 4 Hackware 17 | . . . 2 . . 3 . . . . 3 . . . 1 . 3 . . . . 2 . . . . 1 . 2 Protection 23 | 1 . 1 1 1 3 1 1 . 2 . 2 . . . 1 . . 1 . 1 . 3 . . . 1 . 1 2 Artifact . | . . . . . . . . . . . . . . . . . . . . . . . . . . . . . . Weapon 150 | 3 3 4 15 6 16 11 1 . 3 5 14 . . 2 4 . . 5 2 4 4 8 . 5 . 10 . 4 21 Energy Gun 14 | 2 3 2 7 . . . . . . . . . . . . . . . . . . . . . . . . . . Energy Cannon 33 | . . . 2 . 11 6 1 . 1 2 2 . . . 1 . . 1 1 1 1 1 . . . . . . 2 Ballistic Gun 57 | 1 . 2 4 3 . . . . . . 9 . . 1 2 . . 3 1 2 2 5 . 4 . 6 . 2 10 Ballistic Cannon 1 | . . . . . . . . . . . . . . . . . . . . . . . . . . . . . 1 Launcher 28 | . . . . 3 5 3 . . 2 3 . . . . . . . . . . . . . 1 . 4 . 1 6 Special Weapon 2 | . . . . . . . . . . . . . . . 1 . . . . 1 . . . . . . . . . Impact Weapon 1 | . . . 1 . . . . . . . . . . . . . . . . . . . . . . . . . . Slashing Weapon 3 | . . . 1 . . . . . . . . . . . . . . 1 . . 1 . . . . . . . . Piercing Weapon 11 | . . . . . . 2 . . . . 3 . . 1 . . . . . . . 2 . . . . . 1 2 Special Melee Weapon . | . . . . . . . . . . . . . . . . . . . . . . . . . . . . . . Unidentified Prototypes 17 | . . . 4 . 1 . . . 1 . . . . . . . . 1 . 2 . 2 . 1 . 2 . . 3 Parts Lost 37 | 3 1 5 9 . 3 1 . . . . . . . . . . . . . . . 2 . . . 1 . 1 11 Power 5 | . . 1 1 . 1 . . . . . . . . . . . . . . . . . . . . . . . 2 Propulsion 4 | 1 1 . . . . . . . . . . . . . . . . . . . . . . . . 1 . 1 . Utility 9 | . . 1 2 . . 1 . . . . . . . . . . . . . . . 2 . . . . . . 3 Weapon 19 | 2 . 3 6 . 2 . . . . . . . . . . . . . . . . . . . . . . . 6 Highest Loss Streak 5 | 3 1 5 3 . 2 1 . . . . . . . . . . . . . . . 2 . . . 1 . 1 5 Average Slot Usage (%) 98 | . 95 81 96 99 99 99 100 100 100 100 97 100 100 100 100 100 100 99 100 100 100 99 100 100 100 100 100 100 99 Engine 4 | . 14 13 10 11 9 7 7 7 7 7 2 6 6 6 1 . . . . . . . . . . . . . . Core 1 | . . . . . . . . . . . 3 . . . 3 5 5 5 5 3 . . . . . . . . . Reactor 1 | . . . . . . . . . . . . . . . . . . . . 1 5 5 5 5 5 5 5 5 3 Leg 4 | . 11 . 18 22 26 3 . . . . . . . . . . . . . . . . . . . . . . . Hover 16 | . 14 14 1 . . 19 23 23 23 23 19 20 20 20 23 23 23 22 22 22 22 20 20 20 20 20 20 20 18 Device 8 | . 11 6 6 . 8 13 14 15 12 15 11 6 6 6 5 5 5 5 5 5 5 4 5 9 10 9 10 9 8 Storage 14 | . 14 14 16 22 18 15 15 15 15 15 13 13 13 13 11 11 14 16 16 16 16 15 15 15 15 15 15 15 13 Processor 6 | . . . . . . 7 7 7 7 7 6 6 6 6 5 5 5 5 5 5 5 5 10 10 10 10 10 10 13 Hackware 19 | . . . 9 11 9 14 15 15 15 15 18 26 26 26 29 29 25 22 22 22 22 29 25 25 25 25 25 25 26 Protection 4 | . 2 7 10 10 9 1 . . 1 . 6 6 6 6 5 5 5 4 5 4 5 4 5 . . . . . . Energy Cannon 3 | . . . . 11 15 13 7 7 4 . . . . . . . . 1 . . . . . . . . . . . Ballistic Gun 8 | . 2 12 12 10 . . . . . . 11 13 13 10 10 11 11 10 15 15 13 14 15 15 15 13 15 14 10 Naked Turns . | . . . . . . . . . . . . . . . . . . . . . . . . . . . . . . Heaviest Build 100 | 13 15 20 44 42 79 66 54 58 60 58 65 65 65 65 68 67 83 89 92 95 98 100 93 93 89 91 89 95 98 Greatest Support 120 | 20 22 22 34 34 60 66 66 66 66 66 66 66 66 66 100 100 100 100 100 100 100 100 100 100 100 100 100 100 120 Greatest Overweight (x) 2 | 2 . . 2 1 2 1 . . . . . . . . . . . . . 1 . . . . . . . . 1 Average Overweight (x) . | . . . . 1 . . . . . . . . . . . . . . . . . . . . . . . . . Largest Inventory Capacity 22 | 6 10 6 14 14 18 16 16 16 16 16 16 16 16 16 16 16 22 22 22 22 22 22 22 22 22 22 22 22 22 Average Capacity 16 | 5 6 6 11 14 17 16 16 16 16 16 16 16 16 16 16 16 19 22 22 22 22 22 22 22 22 22 22 22 22 Most Carried 22 | 1 6 6 14 14 18 16 16 16 16 16 16 16 16 16 16 16 21 22 22 22 22 22 21 22 22 22 22 22 22 Average Carried 16 | . 5 5 10 13 16 15 15 16 14 16 15 16 16 16 15 16 17 21 21 22 22 21 20 21 21 21 22 21 20 Final Capacity 22 | 6 6 6 14 14 16 16 16 16 16 16 16 16 16 16 16 16 22 22 22 22 22 22 22 22 22 22 22 22 22 Final Carried 22 | 1 6 6 14 14 16 16 16 16 16 16 16 16 16 16 16 16 21 21 22 22 22 20 21 22 22 22 22 21 16 Class Distribution -------------------- 42% | Hacker-Mutant 24% | Mutant 12% | Wizard-Skirmisher 8% | Wizard-Gunner 5% | Wizard-Mutant 3% | Hacker-Skirmisher Dominant Class ---------------- Mutant | -10/Materials Scavenger-Mutant | -10/Mines Mutant | -9/Materials Mutant | -9/Mines Mutant | -8/Materials Hacker-Mutant | -7/Factory Hacker-Mutant | -7/Lower Caves Hacker-Mutant | -7/Lower Caves Hacker-Mutant | -7/Data Miner Hacker-Mutant | -6/Proximity Caves Hacker-Mutant | -6/Factory Hacker-Mutant | -6/Lower Caves Hacker-Mutant | -6/Zion Hacker-Mutant | -5/Proximity Caves Hacker-Mutant | -5/Factory Hacker-Mutant | -5/Waste Hacker-Mutant | -5/Factory Hacker-Mutant | -5/Upper Caves Hacker-Skirmisher | -5/Upper Caves Hacker-Skirmisher | -5/Warlord Hacker-Mutant | -4/Proximity Caves Wizard-Skirmisher | -4/Factory Wizard-Gunner | -4/Waste Wizard-Skirmisher | -4/Factory Wizard-Skirmisher | -4/Extension Wizard-Mutant | -4/Cetus Wizard-Skirmisher | -4/Archives Wizard-Skirmisher | -4/Hub_04(d) Wizard-Gunner | -3/Research Resources | -11 -10 -10 -9 -9 -8 -7 -7 -7 -7 -6 -6 -6 -6 -5 -5 -5 -5 -5 -5 -5 -4 -4 -4 -4 -4 -4 -4 -4 -3 ----------- Run | Scr Mat Min Mat Min Mat Fac Low Low Dat Pro Fac Low Zio Pro Fac Was Fac Upp Upp War Pro Fac Was Fac Ext Cet Arc Hub Res Matter Collected 9848 | 287 65 80 353 160 668 275 30 15 85 168 1350 . . 10 260 177 210 85 20 541 108 701 465 161 621 235 136 724 1858 Remotely . | . . . . . . . . . . . . . . . . . . . . . . . . . . . . . . Salvage Created 16678 | 129 137 170 971 98 2272 685 92 . 191 489 1683 . . . 410 40 141 57 . 63 . 992 1407 188 813 645 326 1478 3201 Parts 841 | 3 22 8 64 24 104 42 3 . 5 19 93 . . . 26 2 3 2 . 1 . 53 34 6 42 33 21 89 142 Haulers Intercepted 18 | . . . 3 . 5 2 . . . . 1 . . . . . 1 . . . . 2 . . 1 . . 1 2 Recyclers Shooed 11 | . 1 . . 1 3 . . . . . 1 . . . . . . . . . . 1 . . 2 . . . 2 Parts Field Recycled . | . . . . . . . . . . . . . . . . . . . . . . . . . . . . . . Retrieved Matter . | . . . . . . . . . . . . . . . . . . . . . . . . . . . . . . Parts Self-Destructed 38 | . . . . . . . 1 . . 2 . . . . . . . 5 . 30 . . . . . . . . . Prevented 19 | . . . . . . . 4 . . 13 . . . . . . . 2 . . . . . . . . . . . Kills | -11 -10 -10 -9 -9 -8 -7 -7 -7 -7 -6 -6 -6 -6 -5 -5 -5 -5 -5 -5 -5 -4 -4 -4 -4 -4 -4 -4 -4 -3 ------- Run | Scr Mat Min Mat Min Mat Fac Low Low Dat Pro Fac Low Zio Pro Fac Was Fac Upp Upp War Pro Fac Was Fac Ext Cet Arc Hub Res Combat Hostiles Destroyed 194 | 4 4 5 19 9 32 11 1 . 2 10 17 . . . 3 . . 1 . 1 . 10 5 . 7 7 2 14 30 Melee 3 | . . . 2 . . 1 . . . . . . . . . . . . . . . . . . . . . . . Guns 89 | 4 4 4 15 . 2 . . . . . 13 . . . 3 . . 1 . 1 . 8 5 . 7 . 2 6 14 Cannons 30 | . . . . . 22 5 1 . . . 1 . . . . . . . . . . 1 . . . . . . . AOE 48 | . . . 2 9 6 5 . . . 8 2 . . . . . . . . . . 1 . . . . . 7 8 Classes Destroyed 21 | 2 5 1 3 1 2 1 1 . . . . . . . . . . . . . . . 1 . 1 . . . 3 Worker 21 | . . . . 2 2 . . . . . 1 . . . 1 . 1 . . . . . . . 2 . . 8 4 Builder 11 | . . . 2 2 1 1 . . . . 2 . . . . . . . . . . 1 . . . . . 2 . Tunneler 1 | . 1 . . . . . . . . . . . . . . . . . . . . . . . . . . . . Hauler 18 | . . . 3 . 5 2 . . . . 1 . . . . . 1 . . . . 2 . . 1 . . 1 2 Recycler 13 | 1 . . 2 . 3 . . . . . 2 . . . . . . . . . . . . 1 . . . 1 3 Minesweeper 1 | . . . . . . . 1 . . . . . . . . . . . . . . . . . . . . . . Operator 10 | . 1 . . . . 2 . . . . . . . . . . . . . . . . . 1 2 . 4 . . Watcher 23 | . 1 . 4 . 4 . . . . . 1 . . . 4 . . . . . . 1 . . . 2 . 4 2 Swarmer 36 | . 3 3 7 7 . . . . . 3 . . . . . . . . . . . . . . . . . 7 6 Grunt 68 | . 1 . 10 2 19 6 . . . 6 8 . . . . . . 1 . 1 . 4 . . 2 . . 2 6 Brawler 2 | . . . 1 . 1 . . . . . . . . . . . . . . . . . . . . . . . . Duelist 6 | . . . . . 3 . . . . 1 2 . . . . . . . . . . . . . . . . . . Sentry 35 | . . 2 1 . 7 . . . . . 7 . . . 2 . . . . . . 2 . . 3 . 2 5 4 Demolisher 3 | . . . . . . . . . . . . . . . . . . . . . . . . . . . . . 3 Hunter 11 | . . . . . 2 2 1 . . . . . . . . . . . . . . . . . 1 . . . 5 Programmer 11 | . . . . . . 3 . . . . 1 . . . 1 . . . . . . 4 . . . . . . 2 Behemoth 1 | . . . . . . . . . . . . . . . . . . . . . . . . . 1 . . . . Compactor 5 | . . . . . . . . . . . . . . . . . . . . . . . 5 . . . . . . Cetus Guard 7 | . . . . . . . . . . . . . . . . . . . . . . . . . . 7 . . . Enhanced Grunt 2 | . . . . . . . . . 2 . . . . . . . . . . . . . . . . . . . . Striker 3 | . . . . . . . . . . . . . . . . . . . . . . . . . . . . . 3 Executioner 1 | . . . . . . . . . . . . . . . . . . . . . . . . . . . . . 1 Assembled 4 | 4 . . . . . . . . . . . . . . . . . . . . . . . . . . . . . Wasp 1 | . . . . . . . . . . . . . . . . 1 . . . . . . . . . . . . . Best Kill Streak 9 | 4 5 2 9 7 5 2 1 . 2 3 3 . . . 2 . 1 1 . 1 . 3 4 1 5 5 4 7 5 Combat Bots Only 7 | 4 3 2 7 4 4 2 1 . 2 3 3 . . . 1 . . 1 . 1 . 3 4 . 2 4 1 5 5 Max Kills in Single Turn 7 | 1 2 1 3 3 2 2 1 . 1 2 3 . . . 1 1 1 1 . 1 . 1 2 1 2 2 2 7 3 Gunslinging 1 | . 1 . . . . . . . . . . . . . . . . . . . . . . . 1 . . . . Exploded 3 | . . . 1 2 1 1 . . . 2 2 . . . . . . . . . . 1 . . . . . 3 2 Melee 1 | . . . 1 . . 1 . . . . . . . . . . . . . . . . . . . . . . . Uniques/NPCs Destroyed 1 | . . . . . . . . . . . . . . . . . . . . . . . . . . 1 . . . A7 (-4/Cetus) Combat | -11 -10 -10 -9 -9 -8 -7 -7 -7 -7 -6 -6 -6 -6 -5 -5 -5 -5 -5 -5 -5 -4 -4 -4 -4 -4 -4 -4 -4 -3 -------- Run | Scr Mat Min Mat Min Mat Fac Low Low Dat Pro Fac Low Zio Pro Fac Was Fac Upp Upp War Pro Fac Was Fac Ext Cet Arc Hub Res Damage Taken 10202 | 480 65 500 1011 196 1246 428 288 . 94 154 454 . . . 279 . 41 19 . . 78 402 . 25 367 190 . 450 3435 Core 1223 | 106 . 99 150 6 75 73 76 . 48 . 45 . . . 24 . . . . . 27 17 . . 49 32 . 16 380 Absorbed by Shields 113 | . . . . . . . . . . . . . . . . . . . . . 50 . . . . 63 . . . Core Remaining (%) 71 | 57 . 18 . 61 86 . . . . 71 . . . 94 . . . . . . 94 . . . . . . 90 . Volleys Fired 763 | 24 9 26 62 14 121 38 9 13 5 23 96 . . . 24 11 16 11 2 9 8 32 14 6 32 6 7 42 103 Largest 3 | 2 2 2 2 2 2 2 1 1 1 1 2 . . . 2 2 2 3 1 3 3 3 3 3 3 2 3 3 3 Hottest 136 | 80 80 80 125 91 136 134 69 65 69 69 75 . . . 90 66 66 99 90 99 99 123 99 120 120 98 120 120 136 Shots Fired 1500 | 31 18 45 118 16 217 54 9 13 5 23 177 . . . 43 22 32 13 2 15 14 92 42 18 96 10 21 116 238 Gun 1088 | 31 18 45 118 2 10 . . . . . 166 . . . 38 22 32 3 . 9 9 88 42 18 96 . 21 111 209 Cannon 307 | . . . . 2 185 45 9 13 1 5 11 . . . 4 . . 10 2 4 5 4 . . . . . . 7 Launcher 102 | . . . . 12 22 9 . . 4 18 . . . . . . . . . . . . . . . 10 . 5 22 Special 3 | . . . . . . . . . . . . . . . 1 . . . . 2 . . . . . . . . . Kinetic 979 | 17 . 20 60 2 10 . . . . . 166 . . . 38 22 32 3 . 9 9 88 42 18 96 . 21 111 215 Thermal 300 | . . . 31 2 185 31 4 13 . 4 . . . . 4 . . 10 2 4 5 4 . . . . . . 1 Explosive 18 | . . . . 12 3 . . . . 3 . . . . . . . . . . . . . . . . . . . Electromagnetic 200 | 14 18 25 27 . 19 23 5 . 5 16 11 . . . . . . . . . . . . . . 10 . 5 22 Robot Hit Streak 19 | 5 10 8 16 5 12 8 7 . . 3 19 . . . 12 10 12 2 . 5 2 7 4 3 14 5 18 11 7 Robot Miss Streak 6 | 3 2 5 5 4 5 3 . . 1 . 5 . . . 1 3 5 1 . 2 3 3 3 4 4 . 1 3 6 Penetration Max 2 | . . . . . . . . . . . 2 . . . 1 . 1 1 . 1 . 2 1 . 2 . 1 2 2 Secondary Targets 9 | 1 1 1 3 . . . . . . . . . . . . . . 1 . . . . . . 1 . 1 . . Max Gunslinging Chain 1 | 1 1 1 1 . . . . . . . . . . . . . . 1 . . . . . . 1 . 1 . . Shots Hit Robots 811 | 19 12 28 81 7 124 27 8 . 1 3 127 . . . 25 16 19 2 . 7 3 48 20 6 55 2 14 70 87 Core Hits 538 | 10 8 6 40 23 80 20 2 . 3 19 56 . . . 13 2 7 2 . 1 2 32 9 4 33 15 7 68 76 Critical Hits 247 | . . . 2 . 12 . . . . . 38 . . . 15 7 11 1 . 3 1 22 12 3 33 . 11 34 42 Critical Kills 106 | . . . . . 7 . . . . . 15 . . . 7 1 2 1 . 1 . 12 5 1 10 . 6 16 22 Critical Parts Destroyed 116 | . . . 1 . 5 . . . . . 19 . . . 7 1 9 . . 2 1 10 4 2 17 . 4 17 17 Melee Attacks 63 | . . . 8 . . 10 4 5 2 6 10 . . 1 . . . 1 . . 6 7 . . . . . 1 2 Impact . | . . . . . . . . . . . . . . . . . . . . . . . . . . . . . . Slashing 15 | . . . 8 . . . . . . . . . . . . . . 1 . . 6 . . . . . . . . Piercing 48 | . . . . . . 10 4 5 2 6 10 . . 1 . . . . . . . 7 . . . . . 1 2 Sneak Attacks 5 | . . . . . . 1 . . 1 . 3 . . . . . . . . . . . . . . . . . . Combat Hostiles . | . . . . . . . . . . . . . . . . . . . . . . . . . . . . . . Follow-up Attacks . | . . . . . . . . . . . . . . . . . . . . . . . . . . . . . . Damage Inflicted 20290 | 185 194 367 1679 975 3578 1790 228 . 227 785 1683 . . . 269 121 166 20 . 53 39 668 173 50 709 1078 118 1845 3290 Guns 6734 | 185 121 337 1174 28 69 . . . . . 847 . . . 199 121 166 20 . 53 39 430 173 50 709 . 118 621 1274 Cannons 3822 | . . . . 40 2476 678 143 . 19 31 208 . . . 70 . . . . . . 43 . . . . . . 114 Explosions 8878 | . 73 30 325 907 1033 967 . . 127 754 334 . . . . . . . . . . 195 . . . 1078 . 1224 1831 Melee 856 | . . . 180 . . 145 85 . 81 . 294 . . . . . . . . . . . . . . . . . 71 Ramming . | . . . . . . . . . . . . . . . . . . . . . . . . . . . . . . Kinetic 5824 | 96 . 132 565 28 69 . . . . . 847 . . . 199 121 166 20 . 53 39 430 173 50 709 . 118 621 1388 Thermal 4767 | . 73 30 371 40 2571 955 . . . . 334 . . . 70 . . . . . . 238 . . . . . 85 . Explosive 1649 | . . . 284 907 302 . . . . 156 . . . . . . . . . . . . . . . . . . . Electromagnetic 7194 | 89 121 205 279 . 636 690 143 . 146 629 208 . . . . . . . . . . . . . . 1078 . 1139 1831 Impact . | . . . . . . . . . . . . . . . . . . . . . . . . . . . . . . Slashing 180 | . . . 180 . . . . . . . . . . . . . . . . . . . . . . . . . . Piercing 676 | . . . . . . 145 85 . 81 . 294 . . . . . . . . . . . . . . . . . 71 Highest Corruption 4 | . . . . . 3 1 1 1 1 2 . . . . . . . . . 1 . 4 4 4 4 4 4 4 1 Average Corruption 2 | . . . . . 2 1 1 1 1 1 . . . . . . . . . 1 . 3 4 4 4 4 4 4 1 Corruption Purged . | . . . . . . . . . . . . . . . . . . . . . . . . . . . . . . Effects 105 | . . . . . 29 2 3 2 1 3 . . . . . . . . . . . 6 1 8 21 6 4 13 6 Message Errors 27 | . . . . . 8 1 1 1 1 . . . . . . . . . . . . 1 . 3 2 . 1 4 4 Matter Fused 23 | . . . . . 9 . . . . . . . . . . . . . . . . 1 . 1 6 . . 6 . Heat Flow Errors 12 | . . . . . 3 . . . . . . . . . . . . . . . . 1 . 1 4 2 1 . . Energy Discharges 13 | . . . . . 3 . 1 1 . 1 . . . . . . . . . . . 1 . 1 1 . . 3 1 Data Loss (minor) 15 | . . . . . 4 1 1 . . 2 . . . . . . . . . . . . 1 2 2 2 . . . Targeting Errors 14 | . . . . . 2 . . . . . . . . . . . . . . . . 2 . . 6 2 2 . . Weapon Failures 1 | . . . . . . . . . . . . . . . . . . . . . . . . . . . . . 1 Overload Shots . | . . . . . . . . . . . . . . . . . . . . . . . . . . . . . . Overflow Damage 523 | . . . 94 33 45 136 8 . . . 116 . . . . . . . . . . 46 . . . 21 . 11 13 Projectiles 37 | . . . . . 18 19 . . . . . . . . . . . . . . . . . . . . . . . Explosions 339 | . . . 61 33 27 117 . . . . 10 . . . . . . . . . . 46 . . . 21 . 11 13 Melee 147 | . . . 33 . . . 8 . . . 106 . . . . . . . . . . . . . . . . . . Knockbacks 2 | . . . . . . . . . . . . . . . . . . . . . . . . . . . . . 2 Impact . | . . . . . . . . . . . . . . . . . . . . . . . . . . . . . . Kinetic 2 | . . . . . . . . . . . . . . . . . . . . . . . . . . . . . 2 Secondary . | . . . . . . . . . . . . . . . . . . . . . . . . . . . . . . Self-Inflicted Damage 452 | . . . 173 56 64 . . . . 39 . . . . . . . . . . . . . . . . . 67 53 Shots 21 | . . . 3 2 5 . . . . 2 . . . . . . . . . . . . . . . . . 5 4 Rammed . | . . . . . . . . . . . . . . . . . . . . . . . . . . . . . . Targets Rammed . | . . . . . . . . . . . . . . . . . . . . . . . . . . . . . . Kicked . | . . . . . . . . . . . . . . . . . . . . . . . . . . . . . . Crushed . | . . . . . . . . . . . . . . . . . . . . . . . . . . . . . . Highest Temperature 411 | 130 22 23 115 33 326 . . . . . . . . . 56 53 53 162 104 205 160 411 . 153 220 169 129 . 259 Average Temperature 60 | 60 11 7 40 15 66 . . . . . . . . . 11 24 18 78 54 66 69 61 . 91 96 86 91 . 108 Received Heat Transfer 1624 | 40 18 105 270 27 549 90 48 . 12 27 60 . . . 57 . . 9 . . . 39 . . 45 . . 72 156 Effects 1 | . . . . . 1 . . . . . . . . . . . . . . . . . . . . . . . . Shutdowns 1 | . . . . . 1 . . . . . . . . . . . . . . . . . . . . . . . . Siege Activations . | . . . . . . . . . . . . . . . . . . . . . . . . . . . . . . Robots Corrupted 25 | . . 1 . . 2 . . . 2 2 1 . . . . . . . . . . . . . . 8 . 1 8 Combat Hostiles 24 | . . 1 . . 2 . . . 2 2 1 . . . . . . . . . . . . . . 7 . 1 8 Parts Fried 43 | . . . . . 2 . . . 4 5 1 . . . . . . . . . . . . . . 12 . 2 17 Impact Corruptions . | . . . . . . . . . . . . . . . . . . . . . . . . . . . . . . Robots Melted . | . . . . . . . . . . . . . . . . . . . . . . . . . . . . . . Combat Hostiles . | . . . . . . . . . . . . . . . . . . . . . . . . . . . . . . Parts Melted 16 | . . . 3 . 10 1 . . . . . . . . . . . . . . . 1 . . 1 . . . . Heat Transferred 7185 | . 100 50 816 74 4466 1029 . . . . 200 . . . 100 . . . . . . 150 . . . . . 200 . Parts Sabotaged . | . . . . . . . . . . . . . . . . . . . . . . . . . . . . . . Parts Stolen . | . . . . . . . . . . . . . . . . . . . . . . . . . . . . . . Parts Stripped . | . . . . . . . . . . . . . . . . . . . . . . . . . . . . . . Power Chain Reactions 12 | . 1 1 2 . 2 1 . . . 1 . . . . . . . . . . . . . . . . . 3 1 Missiles Intercepted . | . . . . . . . . . . . . . . . . . . . . . . . . . . . . . . Alert | -11 -10 -10 -9 -9 -8 -7 -7 -7 -7 -6 -6 -6 -6 -5 -5 -5 -5 -5 -5 -5 -4 -4 -4 -4 -4 -4 -4 -4 -3 ------- Run | Scr Mat Min Mat Min Mat Fac Low Low Dat Pro Fac Low Zio Pro Fac Was Fac Upp Upp War Pro Fac Was Fac Ext Cet Arc Hub Res Peak Influence 1089 | 15 207 80 305 256 451 539 . . . . 463 . . . 157 154 610 . . . . 360 128 855 405 559 373 777 1089 Initial 407 | . . 80 7 66 . 117 . . . . 88 . . . . 50 107 . . . . . 67 89 51 5 223 130 407 Average 254 | 1 95 61 157 127 220 166 . . . . 251 . . . 73 118 385 . . . . 106 108 371 102 304 317 173 789 Maximum Alert Level 3 | . 1 . 1 1 2 2 . . . . 2 . . . . . 2 . . . . 1 . 3 2 2 1 3 3 Low Security (%) 56 | 100 88 100 70 71 39 70 . . . . 37 . . . 100 100 11 . . . . 73 100 23 90 60 . 69 . Level 1 22 | . 11 . 29 28 57 19 . . . . 45 . . . . . 46 . . . . 26 . 25 9 2 100 29 . Level 2 10 | . . . . . 2 10 . . . . 16 . . . . . 41 . . . . . . 43 . 36 . . 26 Level 3 10 | . . . . . . . . . . . . . . . . . . . . . . . . 7 . . . . 73 Level 4 . | . . . . . . . . . . . . . . . . . . . . . . . . . . . . . . Level 5 . | . . . . . . . . . . . . . . . . . . . . . . . . . . . . . . High Security . | . . . . . . . . . . . . . . . . . . . . . . . . . . . . . . Max Security . | . . . . . . . . . . . . . . . . . . . . . . . . . . . . . . Squads Dispatched 49 | . 3 . 1 . 5 9 . . . 1 4 . . . 1 . 6 . . . . 5 . . 3 . . 4 7 Investigation 11 | . 1 . 1 . 3 2 . . . 1 . . . . . . 1 . . . . . . . . . . 1 1 Extermination 9 | . . . . . . 2 . . . . 2 . . . 1 . 1 . . . . 3 . . . . . . . Reinforcement 21 | . 2 . . . . 5 . . . . . . . . . . 1 . . . . 2 . . 3 . . 2 6 Assault 1 | . . . . . . . . . . . 1 . . . . . . . . . . . . . . . . . . Garrison 7 | . . . . . 2 . . . . . 1 . . . . . 3 . . . . . . . . . . 1 . Intercept . | . . . . . . . . . . . . . . . . . . . . . . . . . . . . . . Construction Impeded 3 | . . . . . . . . . . . . . . . . . 1 . . . . 1 . . . . . 1 . Haulers Reinforced 6 | . . . . . . 1 . . . . . . . . . . . . . . . 1 . . . . . . 4 Stealth | -11 -10 -10 -9 -9 -8 -7 -7 -7 -7 -6 -6 -6 -6 -5 -5 -5 -5 -5 -5 -5 -4 -4 -4 -4 -4 -4 -4 -4 -3 --------- Run | Scr Mat Min Mat Min Mat Fac Low Low Dat Pro Fac Low Zio Pro Fac Was Fac Upp Upp War Pro Fac Was Fac Ext Cet Arc Hub Res Distress Signals 32 | . . . . . 5 2 . . . . 1 . . . . . 2 . . . . 2 . 1 4 2 . 3 10 Communications Jammed . | . . . . . . . . . . . . . . . . . . . . . . . . . . . . . . Distress Signals . | . . . . . . . . . . . . . . . . . . . . . . . . . . . . . . Times Spotted 360 | 4 11 9 39 10 49 27 6 . 1 10 26 . . . 11 4 7 5 . 14 1 12 5 2 25 14 3 17 48 Peak Tracking Total 18 | 4 3 3 5 4 5 4 3 . 1 3 3 . . . 4 2 2 3 . 11 1 4 3 2 6 7 1 18 8 Tactical Retreats 46 | . . 1 9 2 6 2 1 . . 4 4 . . . . . . 1 . 2 1 2 . . 3 . . 2 6 Traps | -11 -10 -10 -9 -9 -8 -7 -7 -7 -7 -6 -6 -6 -6 -5 -5 -5 -5 -5 -5 -5 -4 -4 -4 -4 -4 -4 -4 -4 -3 ------- Run | Scr Mat Min Mat Min Mat Fac Low Low Dat Pro Fac Low Zio Pro Fac Was Fac Upp Upp War Pro Fac Was Fac Ext Cet Arc Hub Res Traps Triggered 12 | . . . . . 2 1 . . . . . . . . 2 . . . . . . 1 . . 3 . . . 3 Indirectly . | . . . . . . . . . . . . . . . . . . . . . . . . . . . . . . Trap Hack Attempts . | . . . . . . . . . . . . . . . . . . . . . . . . . . . . . . Triggered . | . . . . . . . . . . . . . . . . . . . . . . . . . . . . . . Disarmed 7 | . . . . . . . . . . . . . . . 1 . . . . . . . . . 6 . . . . Reprogrammed . | . . . . . . . . . . . . . . . . . . . . . . . . . . . . . . Reused 2 | . . . . . . . 1 . 1 . . . . . . . . . . . . . . . . . . . . Traps Extracted . | . . . . . . . . . . . . . . . . . . . . . . . . . . . . . . Installed 6 | . . . . . . . 3 . 3 . . . . . . . . . . . . . . . . . . . . Triggered 6 | . . . . . . . 1 . . . . . . . . . . . 1 3 1 . . . . . . . . Machines | -11 -10 -10 -9 -9 -8 -7 -7 -7 -7 -6 -6 -6 -6 -5 -5 -5 -5 -5 -5 -5 -4 -4 -4 -4 -4 -4 -4 -4 -3 ---------- Run | Scr Mat Min Mat Min Mat Fac Low Low Dat Pro Fac Low Zio Pro Fac Was Fac Upp Upp War Pro Fac Was Fac Ext Cet Arc Hub Res Machines Disabled 58 | . 1 . 4 2 4 17 . . 1 . 3 . . . 3 . . . . 1 . 5 . . . 1 . 14 2 Max in Single Turn 10 | . 1 . 2 1 1 9 . . 1 . 2 . . . 2 . . . . . . 5 . . . . . 10 1 Garrison Access 8 | . . . . . 1 2 . . . . 2 . . . 1 . . . . . . . . . . . . 1 1 Network Hub 1 | . . . . . . . . . . . . . . . . . . . . . . . . . . . . 1 . Machines Sabotaged . | . . . . . . . . . . . . . . . . . . . . . . . . . . . . . . Garrisons Compromised . | . . . . . . . . . . . . . . . . . . . . . . . . . . . . . . Overloaded Fab Kills . | . . . . . . . . . . . . . . . . . . . . . . . . . . . . . . Fab Network Shutdowns 3 | . . . . . . . . . . . . . . . . . 1 . . . . . . 1 . . . . 1 Hacking | -11 -10 -10 -9 -9 -8 -7 -7 -7 -7 -6 -6 -6 -6 -5 -5 -5 -5 -5 -5 -5 -4 -4 -4 -4 -4 -4 -4 -4 -3 --------- Run | Scr Mat Min Mat Min Mat Fac Low Low Dat Pro Fac Low Zio Pro Fac Was Fac Upp Upp War Pro Fac Was Fac Ext Cet Arc Hub Res Machines Accessed 91 | . 2 . 5 1 12 8 . . 4 1 11 . . . 8 . 7 . 1 1 . 2 . 3 11 1 . 9 4 Terminals 55 | . 1 . 2 . 8 5 . . . 1 6 . . . 4 . 6 . . . . . . 2 11 1 . 8 . Fabricators 9 | . . . . . . 1 . . . . 2 . . . 2 . 1 . . . . 1 . 1 . . . . 1 Repair Stations 5 | . . . 1 . 1 . . . . . 1 . . . . . . . . . . 1 . . . . . . 1 Recycling Units 3 | . 1 . 1 . 1 . . . . . . . . . . . . . . . . . . . . . . . . Scanalyzers 3 | . . . 1 . 1 . . . . . . . . . 1 . . . . . . . . . . . . . . Garrison Access 9 | . . . . . 1 2 . . . . 2 . . . 1 . . . . . . . . . . . . 1 2 Total Hacks 341 | . 6 . 18 1 29 17 . . 29 3 30 . . . 35 . 31 . 1 4 . 10 . 19 46 5 . 41 16 Successful 267 | . 5 . 11 1 17 10 . . 29 1 17 . . . 25 . 23 . 1 4 . 10 . 14 42 5 . 36 16 Failed 72 | . 1 . 7 . 12 7 . . . 2 13 . . . 9 . 8 . . . . . . 5 3 . . 5 . Catastrophic 9 | . 1 . . . 1 3 . . . 1 2 . . . . . . . . . . . . . . . . 1 . Database Lockouts 2 | . . . . . . . . . . . . . . . 1 . . . . . . . . . 1 . . . . Manual 173 | . 5 . 8 . 11 2 . . . 2 18 . 4 . 14 . 20 . . 1 . 3 . 7 32 5 . 37 4 Terminals 206 | . 5 . 11 . 18 8 . . . 3 16 . . . 20 . 19 . . . . . . 15 46 5 . 40 . Fabricators 53 | . . . . . . 6 . . . . 6 . . . 11 . 12 . . . . 4 . 4 . . . . 10 Repair Stations 19 | . . . 3 . 4 . . . . . 2 . . . . . . . . . . 6 . . . . . . 4 Recycling Units 3 | . 1 . 1 . 1 . . . . . . . . . . . . . . . . . . . . . . . . Scanalyzers 8 | . . . 3 . 3 . . . . . . . . . 2 . . . . . . . . . . . . . . Garrison Access 17 | . . . . . 3 3 . . . . 6 . . . 2 . . . . . . . . . . . . 1 2 Terminal Hacks 149 | . 3 . 5 1 6 1 . . 29 1 4 . . . 10 . 8 . 1 4 . . . 11 36 4 . 25 . Record 13 | . . . . . 1 . . . 11 1 . . . . . . . . . . . . . . . . . . . Part Schematic 24 | . . . . . 1 . . . 8 . 2 . . . 1 . 2 . . . . . . 3 3 . . 4 . Robot Schematic 7 | . . . . . . . . . 7 . . . . . . . . . . . . . . . . . . . . Robot Analysis 2 | . . . . . . . . . . . . . . . . . . . . . . . . . 2 . . . . Prototype ID Bank 11 | . . . 1 . . . . . 3 . . . . . . . 1 . . 4 . . . . 2 . . . . Open Door 10 | . . . . 1 . . . . . . . . . . . . . . 1 . . . . . 7 1 . . . Level Access Points 2 | . . . . . . . . . . . . . . . . . . . . . . . . . 1 . . 1 . Branch Access Points 6 | . . . 1 . . 1 . . . . 1 . . . 1 . 1 . . . . . . . 1 . . . . Machine Index 2 | . . . . . . . . . . . . . . . 1 . . . . . . . . 1 . . . . . Terminal Index 7 | . 1 . 1 . . . . . . . 1 . . . . . 1 . . . . . . . 1 1 . 1 . Fabricator Index 2 | . . . . . . . . . . . . . . . 1 . 1 . . . . . . . . . . . . Alert Level 19 | . . . 1 . 2 . . . . . . . . . 2 . . . . . . . . 2 5 1 . 6 . Unreport Threat 17 | . . . 1 . 2 . . . . . . . . . . . . . . . . . . 5 6 . . 3 . Locate Traps 2 | . . . . . . . . . . . . . . . 1 . . . . . . . . . 1 . . . . Disarm Traps 2 | . . . . . . . . . . . . . . . 1 . . . . . . . . . 1 . . . . Recall Investigation 2 | . . . . . . . . . . . . . . . . . . . . . . . . . 1 . . 1 . Recall Extermination 1 | . . . . . . . . . . . . . . . . . 1 . . . . . . . . . . . . Recall Reinforcements 3 | . . . . . . . . . . . . . . . . . . . . . . . . . 2 . . 1 . Recall Assault 1 | . . . . . . . . . . . . . . . . . . . . . . . . . 1 . . . . Hauler Manifests 2 | . 1 . . . . . . . . . . . . . 1 . . . . . . . . . . . . . . Zone Layout 14 | . 1 . . . . . . . . . . . . . 1 . 1 . . . . . . . 2 1 . 8 . Fabricator Hacks 36 | . . . . . . 6 . . . . 4 . . . 6 . 9 . . . . 1 . 3 . . . . 7 Load Schematic 14 | . . . . . . 3 . . . . 2 . . . 2 . 3 . . . . . . 1 . . . . 3 Build 22 | . . . . . . 3 . . . . 2 . . . 4 . 6 . . . . 1 . 2 . . . . 4 Repair Station Hacks 18 | . . . 2 . 4 . . . . . 2 . . . . . . . . . . 6 . . . . . . 4 Scan Component 9 | . . . 1 . 2 . . . . . 1 . . . . . . . . . . 3 . . . . . . 2 Repair 9 | . . . 1 . 2 . . . . . 1 . . . . . . . . . . 3 . . . . . . 2 Recycling Unit Hacks 1 | . . . . . 1 . . . . . . . . . . . . . . . . . . . . . . . . Retrieve Components 1 | . . . . . 1 . . . . . . . . . . . . . . . . . . . . . . . . Scanalyzer 7 | . . . 2 . 3 . . . . . . . . . 2 . . . . . . . . . . . . . . Insert Component 4 | . . . 1 . 2 . . . . . . . . . 1 . . . . . . . . . . . . . . Analyze 3 | . . . 1 . 1 . . . . . . . . . 1 . . . . . . . . . . . . . . Garrison Access Hacks 7 | . . . . . 1 2 . . . . 1 . . . 1 . . . . . . . . . . . . 1 1 Seal Access 7 | . . . . . 1 2 . . . . 1 . . . 1 . . . . . . . . . . . . 1 1 Unauthorized Hacks 49 | . 2 . 2 . 2 1 . . . . 6 . . . 6 . 6 . . . . 3 . . 6 1 . 10 4 Terminals 32 | . 1 . 1 . 2 1 . . . . 4 . . . 3 . 3 . . . . . . . 6 1 . 10 . Track 2 | . . . . . . . . . . . . . . . . . . . . . . . . . . . . 2 . Assimilate 6 | . . . . . . 1 . . . . 2 . . . 2 . 1 . . . . . . . . . . . . Botnet 23 | . 1 . 1 . 2 . . . . . 2 . . . 1 . 2 . . . . . . . 5 1 . 8 . Operators 1 | . . . . . . . . . . . . . . . . . . . . . . . . . 1 . . . . Fabricators 12 | . . . . . . . . . . . . . . . 3 . 3 . . . . 3 . . . . . . 3 Report 3 | . . . . . . . . . . . . . . . . . 1 . . . . 1 . . . . . . 1 Prioritize 5 | . . . . . . . . . . . . . . . 2 . 1 . . . . 1 . . . . . . 1 Siphon 4 | . . . . . . . . . . . . . . . 1 . 1 . . . . 1 . . . . . . 1 Repair Stations . | . . . . . . . . . . . . . . . . . . . . . . . . . . . . . . Recycling Units 2 | . 1 . 1 . . . . . . . . . . . . . . . . . . . . . . . . . . Tunnel 2 | . 1 . 1 . . . . . . . . . . . . . . . . . . . . . . . . . . Scanalyzers . | . . . . . . . . . . . . . . . . . . . . . . . . . . . . . . Garrison Access 3 | . . . . . . . . . . . 2 . . . . . . . . . . . . . . . . . 1 Reprogram 3 | . . . . . . . . . . . 2 . . . . . . . . . . . . . . . . . 1 Data Cores Recovered 1 | . . . . . . . . . . . . . . . . . . . . . . . . 1 . . . . . Used 1 | . . . . . . . . . . . . . . . . . . . . . . . . 1 . . . . . Hacking Detections 61 | . 1 . 3 . 12 5 . . . 1 11 . . . 5 . 6 . . . . 2 . 3 5 . . 7 . Full Trace Events 7 | . . . 1 . 1 2 . . . 1 . . . . . . 1 . . . . . . . . . . 1 . Feedback Events 2 | . . . . . 1 1 . . . . . . . . . . . . . . . . . . . . . . . Corruption 1 | . . . . . 1 . . . . . . . . . . . . . . . . . . . . . . . . Hackware Fried 1 | . . . . . . 1 . . . . . . . . . . . . . . . . . . . . . . . Feedback Blocked . | . . . . . . . . . . . . . . . . . . . . . . . . . . . . . . Robot Schematics Acquired 7 | . . . . . . . . . 7 . . . . . . . . . . . . . . . . . . . . Robots Built . | . . . . . . . . . . . . . . . . . . . . . . . . . . . . . . Matter . | . . . . . . . . . . . . . . . . . . . . . . . . . . . . . . Time . | . . . . . . . . . . . . . . . . . . . . . . . . . . . . . . Total Robot Build Rating . | . . . . . . . . . . . . . . . . . . . . . . . . . . . . . . Part Schematics Acquired 26 | . . . 1 . 2 . . . 8 . 2 . . . 2 . 2 . . . . . . 3 2 . . 4 . Parts Built 30 | . . . . . . 5 . . . . 2 . . . 7 . 6 . . . . 1 . 4 . . . . 5 Matter 4031 | . . . . . . 526 . . . . 336 . . . 815 . 797 . . . . 384 . 512 . . . . 661 Time 1436 | . . . . . . 130 . . . . 104 . . . 364 . 282 . . . . 204 . 84 . . . . 268 Total Part Build Rating 174 | . . . . . . 23 . . . . 8 . . . 41 . 25 . . . . 8 . 32 . . . . 37 Parts Repaired 9 | . . . 1 . 2 . . . . . 1 . . . . . . . . . . 3 . . . . . . 2 Time 335 | . . . 50 . 102 . . . . . 25 . . . . . . . . . . 75 . . . . . . 83 Parts Recycled . | . . . . . . . . . . . . . . . . . . . . . . . . . . . . . . Recycled Matter . | . . . . . . . . . . . . . . . . . . . . . . . . . . . . . . Retrieved Matter . | . . . . . . . . . . . . . . . . . . . . . . . . . . . . . . Retrieved Components 2 | . . . . . 2 . . . . . . . . . . . . . . . . . . . . . . . . Parts Scanalyzed 3 | . . . 1 . 1 . . . . . . . . . 1 . . . . . . . . . . . . . . Part Schematics Acquired 3 | . . . 1 . 1 . . . . . . . . . 1 . . . . . . . . . . . . . . Parts Damaged . | . . . . . . . . . . . . . . . . . . . . . . . . . . . . . . Bothacking | -11 -10 -10 -9 -9 -8 -7 -7 -7 -7 -6 -6 -6 -6 -5 -5 -5 -5 -5 -5 -5 -4 -4 -4 -4 -4 -4 -4 -4 -3 ------------ Run | Scr Mat Min Mat Min Mat Fac Low Low Dat Pro Fac Low Zio Pro Fac Was Fac Upp Upp War Pro Fac Was Fac Ext Cet Arc Hub Res Used RIF Installer . | . . . . . . . . . . . . . . . . . . . . . . . . . . . . . . Robots Hacked 2 | . . . . . . . . . . . . . . . 1 . . . . 1 . . . . . . . . . Non-combat 1 | . . . . . . . . . . . . . . . 1 . . . . . . . . . . . . . . Combat 1 | . . . . . . . . . . . . . . . . . . . . 1 . . . . . . . . . Robot Hacks Applied 2 | . . . . . . . . . . . . . . . 1 . . . . 1 . . . . . . . . . parse_system 1 | . . . . . . . . . . . . . . . . . . . . 1 . . . . . . . . . find_chute 1 | . . . . . . . . . . . . . . . 1 . . . . . . . . . . . . . . Relay Couplers Released 3 | . . . . . . . . . . . 3 . . . . . . . . . . . . . . . . . . Machine Destruction 3 | . . . . . . . . . . . 3 . . . . . . . . . . . . . . . . . . Robots Rewired 19 | . . . . . . . . . . . . . . . . . . . . 6 . . . . 13 . . . . Allies Hacked 1 | . . . . . . . . . . . 1 . . . . . . . . . . . . . . . . . . Hacks Repelled . | . . . . . . . . . . . . . . . . . . . . . . . . . . . . . . Allies | -11 -10 -10 -9 -9 -8 -7 -7 -7 -7 -6 -6 -6 -6 -5 -5 -5 -5 -5 -5 -5 -4 -4 -4 -4 -4 -4 -4 -4 -3 -------- Run | Scr Mat Min Mat Min Mat Fac Low Low Dat Pro Fac Low Zio Pro Fac Was Fac Upp Upp War Pro Fac Was Fac Ext Cet Arc Hub Res Total Allies 84 | . . 1 . . . . . . . . 3 . 4 . 2 18 1 . . 6 . . 19 . 24 5 . . 1 Largest Group 20 | . . 1 . . . . . . . . 1 . 4 4 2 19 18 1 . 5 5 . 19 19 20 15 2 2 1 Highest-Rated Group 915 | . . 31 . . . . . . . . 32 . 93 93 52 676 645 26 . 275 275 . 696 696 857 915 188 188 27 Highest-Rated Ally 140 | . . 31 . . . . . . . . 32 . 31 31 26 50 50 26 . 60 60 . 50 50 140 140 94 94 27 Total Orders 10 | . . . . . . . . . . . 1 . . . 2 . . . . 3 . . . . . 2 . . 2 STAY 3 | . . . . . . . . . . . 1 . . . 1 . . . . . . . . . . 1 . . . FOLLOW 2 | . . . . . . . . . . . . . . . 1 . . . . 1 . . . . . . . . . GUARD 1 | . . . . . . . . . . . . . . . . . . . . . . . . . . 1 . . . AID 2 | . . . . . . . . . . . . . . . . . . . . 2 . . . . . . . . . EXPLORE 2 | . . . . . . . . . . . . . . . . . . . . . . . . . . . . . 2 Ally Attacks 613 | . . 1 . . . . . . . . 3 . . 12 . 141 119 . . 22 5 . 25 40 182 36 7 20 . Total Damage 18708 | . . 22 . . . . . . . . 59 . . 152 . 4003 2481 . . 1604 131 . 928 941 5855 1468 276 788 . Kills 76 | . . . . . . . . . . . . . . . . 6 12 . . 6 . . 1 8 28 10 2 3 . Allies Corrupted 1 | . . . . . . . . . . . . . . . . . . . . . . . . . . . . . 1 Allies Melted . | . . . . . . . . . . . . . . . . . . . . . . . . . . . . . . Intel | -11 -10 -10 -9 -9 -8 -7 -7 -7 -7 -6 -6 -6 -6 -5 -5 -5 -5 -5 -5 -5 -4 -4 -4 -4 -4 -4 -4 -4 -3 ------- Run | Scr Mat Min Mat Min Mat Fac Low Low Dat Pro Fac Low Zio Pro Fac Was Fac Upp Upp War Pro Fac Was Fac Ext Cet Arc Hub Res Robot Analysis Total 2 | . . . . . . . . . . . . . . . . . . . . . . . . . 2 . . . . Derelict Logs Recovered 6 | . . 1 . . . . 1 1 . 1 . . 1 1 . . . . . . . . . . . . . . . Drone Launches 2 | . . . . . . . . . . . . . . . . . . . . . . . . . . . . . 2 Drone Recoveries . | . . . . . . . . . . . . . . . . . . . . . . . . . . . . . . Exploration | -11 -10 -10 -9 -9 -8 -7 -7 -7 -7 -6 -6 -6 -6 -5 -5 -5 -5 -5 -5 -5 -4 -4 -4 -4 -4 -4 -4 -4 -3 ------------- Run | Scr Mat Min Mat Min Mat Fac Low Low Dat Pro Fac Low Zio Pro Fac Was Fac Upp Upp War Pro Fac Was Fac Ext Cet Arc Hub Res Turns Passed 23401 | 1556 248 427 1155 890 2082 1593 1188 299 176 640 2012 3 858 318 1118 279 1011 453 237 389 370 816 234 352 1104 381 106 564 2542 Spaces Moved 17555 | 154 154 384 564 523 926 1305 708 355 187 531 1763 5 979 339 865 291 800 502 289 383 336 692 221 255 652 221 56 478 2637 Core 16 | 16 . . . . . . . . . . . . . . . . . . . . . . . . . . . . . Treads . | . . . . . . . . . . . . . . . . . . . . . . . . . . . . . . Legs 2214 | 138 . . 490 523 926 137 . . . . . . . . . . . . . . . . . . . . . . . Wheels . | . . . . . . . . . . . . . . . . . . . . . . . . . . . . . . Hover 15325 | . 154 384 74 . . 1168 708 355 187 531 1763 5 979 339 865 291 800 502 289 383 336 692 221 255 652 221 56 478 2637 Flight . | . . . . . . . . . . . . . . . . . . . . . . . . . . . . . . Fastest Speed 50 | 50 80 80 80 160 130 72 72 72 72 72 72 72 72 72 68 68 68 68 68 68 68 68 68 68 68 68 68 68 68 Average Speed 80 | 122 87 80 145 160 153 81 72 72 72 72 72 72 72 72 68 68 68 68 68 68 68 68 68 68 68 68 68 68 68 Slowest Speed 190 | 150 90 80 190 160 185 160 72 72 72 72 72 72 72 72 72 68 68 68 68 142 68 68 68 68 68 68 68 68 142 Overloaded Moves . | . . . . . . . . . . . . . . . . . . . . . . . . . . . . . . Propulsion Burnouts . | . . . . . . . . . . . . . . . . . . . . . . . . . . . . . . Robots Hopped . | . . . . . . . . . . . . . . . . . . . . . . . . . . . . . . Cave-ins Triggered . | . . . . . . . . . . . . . . . . . . . . . . . . . . . . . . Exploration Rate (%) 52 | 22 35 66 37 80 77 32 67 63 77 54 34 2 88 58 21 86 18 51 43 54 49 16 87 9 85 66 59 52 75 Regions Visited 29 Branch Regions 17 Pre-discovered Areas 7 | . 1 1 1 . . . . . 1 . . . 3 . . . . . . . . . . . . . . . . Known Exits Taken 20 | . . . 1 . . 1 1 1 1 1 1 1 1 1 . . 1 1 1 1 1 . . 1 1 1 1 1 . Unknown Exits Taken 5 | 1 1 1 . 1 1 . . . . . . . . . . . . . . . . . . . . . . . . Scrap Searched 24 | . . 1 . 1 . . 7 2 . 1 . . 4 1 . . . 1 4 . 2 . . . . . . . . Spaces Dug 89 | . . . . 7 3 4 3 7 . 6 4 . . . 2 . . 11 . . 11 5 . . . . . 8 18 Terrain Destroyed 772 | . . 2 43 88 66 47 3 7 . 51 77 . . . 65 . . 11 2 . 11 71 . . . . . 178 50 Melee 26 | . . . . . . 4 1 1 . 3 4 . . . . . . 1 . . 6 5 . . . . . 1 . Projectile 82 | . . . . . 2 3 2 6 . 3 . . . . 2 . . 10 2 . 5 2 . . . . . . 45 AOE 664 | . . 2 43 88 64 40 . . . 45 73 . . . 63 . . . . . . 64 . . . . . 177 5 Terrain Rammed . | . . . . . . . . . . . . . . . . . . . . . . . . . . . . . . Walls Destroyed . | . . . . . . . . . . . . . . . . . . . . . . . . . . . . . . Machines Disabled . | . . . . . . . . . . . . . . . . . . . . . . . . . . . . . . Actions | -11 -10 -10 -9 -9 -8 -7 -7 -7 -7 -6 -6 -6 -6 -5 -5 -5 -5 -5 -5 -5 -4 -4 -4 -4 -4 -4 -4 -4 -3 --------- Run | Scr Mat Min Mat Min Mat Fac Low Low Dat Pro Fac Low Zio Pro Fac Was Fac Upp Upp War Pro Fac Was Fac Ext Cet Arc Hub Res Total 25283 | 1491 246 458 762 558 1378 1765 1370 378 218 753 2314 4 1132 410 1350 349 1233 597 326 499 454 951 272 423 1241 440 107 623 3181 Wait 6233 | 1304 69 35 66 10 248 369 638 2 7 187 386 . 152 69 429 48 408 75 31 71 101 187 37 141 489 183 43 94 354 Move 17528 | 153 153 383 563 522 925 1304 707 354 186 530 1762 4 978 338 865 290 799 501 288 382 335 692 220 254 651 220 55 477 2637 Hop . | . . . . . . . . . . . . . . . . . . . . . . . . . . . . . . Pick Up 149 | 2 6 6 21 2 24 10 3 . 4 . 14 . 1 . 8 . 5 1 2 3 . 8 1 6 2 6 . 1 13 Fast Attach 67 | 7 2 1 9 . 7 5 . . . . 7 . . . 1 . 1 2 . 5 . 4 . 2 . 4 1 . 9 Attach 42 | 1 1 4 6 1 4 2 . . . . 2 . . . 2 . . 1 . . . 4 . . . 2 . 1 11 Detach 2 | . . . 1 . 1 . . . . . . . . . . . . . . . . . . . . . . . . Swap 182 | . 4 1 14 7 19 16 3 2 7 5 18 . . 2 10 . 3 4 2 4 4 10 . 4 . 10 . 6 27 Drop 160 | . 2 2 12 2 29 11 3 2 4 . 19 . 1 . 11 . 1 1 1 8 . 7 . 10 2 9 1 1 21 Fire 763 | 24 9 26 62 14 121 38 9 13 5 23 96 . . . 24 11 16 11 2 9 8 32 14 6 32 6 7 42 103 Melee 63 | . . . 8 . . 10 4 5 2 6 10 . . 1 . . . 1 . . 6 7 . . . . . 1 2 Ram . | . . . . . . . . . . . . . . . . . . . . . . . . . . . . . . Kick . | . . . . . . . . . . . . . . . . . . . . . . . . . . . . . . Crush . | . . . . . . . . . . . . . . . . . . . . . . . . . . . . . . Escape Stasis 28 | . . . . . . . . . . . . . . . . . . . . . . . . . 24 . . . 4 Rewire 60 | . . . . . . . . . . 2 . . . . . . . . . 17 . . . . 41 . . . . Trap 6 | . . . . . . . 3 . 3 . . . . . . . . . . . . . . . . . . . . Miscellaneous . | . . . . . . . . . . . . . . . . . . . . . . . . . . . . . . Route ------- -11/Scrapyard -10/Materials (discovered 2 exits: Mat / [*Min]) -10/Mines -9/Materials (discovered 3 exits: *Min / Sto x2) -9/Mines (discovered 2 exits: *Mat x2) -8/Materials (discovered 2 exits: *Fac x2) -7/Factory (discovered 3 exits: *Fac / *Low x2) -7/Lower Caves -7/Lower Caves -7/Data Miner -6/Proximity Caves -6/Factory (discovered 4 exits: *Fac x2 / *Low x2) -6/Lower Caves -6/Zion (discovered 2 exits: *Dee / *Pro) -5/Proximity Caves -5/Factory (discovered 3 exits: *Fac / *Upp x2) -5/Waste -5/Factory (discovered 2 exits: *Upp x2) -5/Upper Caves -5/Upper Caves -5/Warlord -4/Proximity Caves -4/Factory -4/Waste -4/Factory -4/Extension (discovered 3 exits: *Res x2 / *Cet) -4/Cetus (discovered 2 exits: *Res / *Arc) -4/Archives -4/Hub_04(d) (discovered 4 exits: *Res x4) -3/Research (discovered 4 exits: *Res x3 / *Arm) History --------- Turn | Location | Event 4 | -11/Scrapyard | Discovered new exit (range 16) 1355 | -11/Scrapyard | Assembled infested the area 1519 | -11/Scrapyard | Lost 3 parts (1n2w) 1557 | -11/Scrapyard | Entered Materials 1578 | -10/Materials | Build established: Mutant 1617 | -10/Materials | Discovered new exit (range 19) 1718 | -10/Materials | Discovered new exit (range 14) 1805 | -10/Materials | Entered Mines 1846 | -10/Mines | Learned location of Zion (-6) 1847 | -10/Mines | Received a Mining Laser from a helpful Derelict 1974 | -10/Mines | Core integrity fell below 50% 2029 | -10/Mines | Lost 5 parts (1p1u3w) 2111 | -10/Mines | A weapon hastily lodged in a ceiling crevice suddenly fell to the ground 2229 | -10/Mines | Discovered new exit (range 4) 2231 | -10/Mines | Core integrity fell below 20% 2232 | -10/Mines | Entered Materials 2232 | -9/Materials | Evolved 2 slots: Utility x2 2326 | -9/Materials | Build established: Scavenger-Mutant 2586 | -9/Materials | Lost 3 parts (1p2w) 2778 | -9/Materials | Destroyed 7 combat bots 2811 | -9/Materials | Lost 3 parts (1u2w) 2961 | -9/Materials | Repaired Cmb. Airjet? 3214 | -9/Materials | Build established: Mutant 3288 | -9/Materials | Identified exit to Mines 3288 | -9/Materials | Identified exit to Storage 3387 | -9/Materials | Entered Mines 3396 | -9/Mines | Discovered new exit (range 3) 3462 | -9/Mines | Received a Rocket Launcher from a helpful Derelict 4237 | -9/Mines | Discovered new exit (range 8) 4251 | -9/Mines | Found the Drone Emporium 4262 | -9/Mines | Found Prototype Device 4277 | -9/Mines | Entered Materials 4277 | -8/Materials | Evolved 2 slots: Propulsion x1, Utility x1 4580 | -8/Materials | Identified Decoy Drone Bay 4992 | -8/Materials | Garrison activated, responded to threat 5502 | -8/Materials | Repaired Adv. Beam Cannon 5555 | -8/Materials | Repaired Adv. Beam Cannon 5699 | -8/Materials | Discovered new exit (range 15) 6298 | -8/Materials | Discovered new exit (range 9) 6359 | -8/Materials | Entered Factory 6359 | -7/Factory | Evolved 2 slots: Utility x2 6601 | -7/Factory | Fabricated Cmb. Airjet (x2) 6653 | -7/Factory | Fabricated Adv. Sensor Array (x1) 6679 | -7/Factory | Build established: Hacker-Mutant 6705 | -7/Factory | Fabricated Cmb. Airjet (x2) 7425 | -7/Factory | Hacking Suite fried by hacking feedback 7436 | -7/Factory | Identified exit to Lower Caves 7877 | -7/Factory | Discovered new exit (range 7) 7952 | -7/Factory | Entered Lower Caves 8028 | -7/Lower Caves | Encountered a Warlord checkpoint 8068 | -7/Lower Caves | Learned Factory trap positions 8608 | -7/Lower Caves | Spotted B-75 Beast 9106 | -7/Lower Caves | Discovered new exit (range 9) 9139 | -7/Lower Caves | Identified exit to Lower Caves 9140 | -7/Lower Caves | Entered another Lower Caves area 9189 | -7/Lower Caves | Learned 8 Factory zone layouts 9288 | -7/Lower Caves | Spotted B-75 Beast 9435 | -7/Lower Caves | Discovered new exit (range 6) 9438 | -7/Lower Caves | Identified exit to Data Miner 9439 | -7/Lower Caves | Entered Data Miner 9439 | -7/Data Miner | Discovered new exit (range 7) 9446 | -7/Data Miner | Identified exit to Proximity Caves 9455 | -7/Data Miner | Met Data Miner 9473 | -7/Data Miner | Received God Mode back door access code from Data Miner 9485 | -7/Data Miner | Learned location of Section 7 (-2) 9485 | -7/Data Miner | Acquired the access code to Warlord's prototype stash 9543 | -7/Data Miner | Data Conduit disabled 9615 | -7/Data Miner | Entered Proximity Caves 9701 | -6/Proximity Caves | Identified exit to Factory 10255 | -6/Proximity Caves | Entered Factory 10255 | -6/Factory | Evolved 2 slots: Utility x2 10256 | -6/Factory | Identified exit to Factory 10257 | -6/Factory | Loaded intel: 115 trap records 10549 | -6/Factory | Repaired Cmb. Airjet 10877 | -6/Factory | Fabricated Hacking Suite? 11114 | -6/Factory | Identified exit to Lower Caves 11300 | -6/Factory | Discovered exit to Factory (range 7) 11926 | -6/Factory | Fabricated Imp. Armor Integrity Analyzer (x1) 12267 | -6/Factory | Entered Lower Caves 12268 | -6/Lower Caves | A Derelict revealed a hidden shortcut to a safe place 12270 | -6/Lower Caves | Identified exit to Zion 12270 | -6/Lower Caves | Entered Zion 12288 | -6/Zion | Acquired unknown access codes intercepted by a Zionite 12322 | -6/Zion | Discovered new exit (range 16) 12396 | -6/Zion | Learned location of Warlord (-5) 12791 | -6/Zion | Gained Derelict followers 12844 | -6/Zion | Opened final containment barrier to the Deep Caves 12856 | -6/Zion | Discovered new exit (range 3) 12856 | -6/Zion | Saw the warning signs outside the Deep Caves entrance 12890 | -6/Zion | Identified exit to Deep Caves 13011 | -6/Zion | Identified exit to Proximity Caves 13128 | -6/Zion | Entered Proximity Caves 13128 | -5/Proximity Caves | Accompanied by 4 allies 13414 | -5/Proximity Caves | Discovered exit to Factory (range 13) 13433 | -5/Proximity Caves | Learned Factory emergency access door positions 13446 | -5/Proximity Caves | Entered Factory 13446 | -5/Factory | Evolved 2 slots: Propulsion x1, Utility x1 13867 | -5/Factory | Discovered new exit (range 10) 13873 | -5/Factory | Identified exit to Factory 13897 | -5/Factory | Identified exit to Upper Caves 14108 | -5/Factory | Fabricated Cmb. Gravmag System (x2) 14166 | -5/Factory | Fabricated Cmb. Gravmag System (x2) 14225 | -5/Factory | Fabricated Cmb. Gravmag System (x2) 14287 | -5/Factory | P-70 Sage assimilated allied Administrator 6a 14343 | -5/Factory | Central database locked down 14426 | -5/Factory | Fabricated Exp. Targeting Computer (x1) 14560 | -5/Factory | Spotted B-75 Beast 14564 | -5/Factory | Manually triggered Chute Trap 14564 | -5/Factory | Sucked down chute 14564 | -5/Factory | Entered Waste 14580 | -5/Waste | 1 allies followed down the chute 14608 | -5/Waste | Spotted C-40 Crusher 14622 | -5/Waste | Warlord forces began an assault 14643 | -5/Waste | Allies destroyed C-40 Crusher 14648 | -5/Waste | Spotted C-40 Crusher 14650 | -5/Waste | Allies destroyed C-40 Crusher 14653 | -5/Waste | Spotted C-40 Crusher 14657 | -5/Waste | Spotted C-40 Crusher 14664 | -5/Waste | Allies destroyed C-40 Crusher 14668 | -5/Waste | Allies destroyed C-40 Crusher 14674 | -5/Waste | Spotted C-40 Crusher 14678 | -5/Waste | Allies destroyed C-40 Crusher 14685 | -5/Waste | Allies destroyed C-40 Crusher 14762 | -5/Waste | Discovered new exit (range 12) 14811 | -5/Waste | Identified exit to Factory 14843 | -5/Waste | Entered Factory 14843 | -5/Factory | Accompanied by 18 allies 14902 | -5/Factory | Garrison activated, responded to threat 15276 | -5/Factory | Fabricated Lrg. Storage Unit (x1) 15314 | -5/Factory | Fabricated Hacking Suite (x1) 15351 | -5/Factory | Fabricated Hacking Suite (x1) 15552 | -5/Factory | Fabricated Adv. Hacking Suite (x1) 15607 | -5/Factory | Fabricated Adv. Hacking Suite (x1) 15661 | -5/Factory | Local fabrication network quarantined 15662 | -5/Factory | Fabricated Adv. Hacking Suite (x1) 15854 | -5/Factory | Entered Upper Caves 15854 | -5/Upper Caves | Accompanied by 1 ally 16187 | -5/Upper Caves | Found Alien Artifact 16187 | -5/Upper Caves | Identified Core Expander 16187 | -5/Upper Caves | Installed Core Expander, added new Weapon slot 16243 | -5/Upper Caves | Encountered a Warlord checkpoint 16303 | -5/Upper Caves | Discovered new exit (range 4) 16305 | -5/Upper Caves | Identified exit to Upper Caves 16307 | -5/Upper Caves | Entered another Upper Caves area 16368 | -5/Upper Caves | Encountered a Warlord checkpoint 16471 | -5/Upper Caves | Build established: Hacker-Skirmisher 16524 | -5/Upper Caves | Discovered new exit (range 14) 16532 | -5/Upper Caves | Identified exit to Warlord 16544 | -5/Upper Caves | Entered Warlord 16568 | -5/Warlord | System corruption cleaned by Quarantine Array 16659 | -5/Warlord | Met Warlord 16665 | -5/Warlord | Opened Warlord's prototype stash 16684 | -5/Warlord | Warlord's base attacked by MAIN.C 16687 | -5/Warlord | Found Prototype Processor 16871 | -5/Warlord | Discovered new exit (range 14) 16878 | -5/Warlord | Identified exit to Proximity Caves 16933 | -5/Warlord | Entered Proximity Caves 16933 | -4/Proximity Caves | Accompanied by 5 allies 17042 | -4/Proximity Caves | Spotted B-86 Titan 17292 | -4/Proximity Caves | Discovered exit to Factory (range 15) 17303 | -4/Proximity Caves | Entered Factory 17303 | -4/Factory | Evolved 2 slots: Utility x2 17453 | -4/Factory | Fabricated Centrium Medium Armor Plating (x1) 17592 | -4/Factory | Build established: Wizard-Skirmisher 17598 | -4/Factory | Discovered new exit (range 6) 17601 | -4/Factory | Identified exit to Research 17949 | -4/Factory | Repaired Hyp. Gauss Rifle 17975 | -4/Factory | Repaired Hyp. Gauss Rifle 18002 | -4/Factory | Repaired Lyr. Medium Armor Plating 18119 | -4/Factory | Sucked down chute 18119 | -4/Factory | Entered Waste 18125 | -4/Waste | Spotted C-40 Crusher 18127 | -4/Waste | Destroyed C-40 Crusher 18134 | -4/Waste | Spotted C-40 Crusher 18151 | -4/Waste | Destroyed C-40 Crusher 18156 | -4/Waste | Spotted C-40 Crusher 18157 | -4/Waste | Spotted C-40 Crusher 18161 | -4/Waste | Destroyed C-40 Crusher 18161 | -4/Waste | Destroyed C-40 Crusher 18168 | -4/Waste | Spotted C-40 Crusher 18179 | -4/Waste | Destroyed C-40 Crusher 18199 | -4/Waste | Warlord forces began an assault 18203 | -4/Waste | Found Prototype Device 18209 | -4/Waste | Spotted C-40 Crusher 18217 | -4/Waste | Allies destroyed C-40 Crusher 18270 | -4/Waste | Discovered new exit (range 15) 18317 | -4/Waste | Identified exit to Factory 18353 | -4/Waste | Entered Factory 18353 | -4/Factory | Accompanied by 19 allies 18386 | -4/Factory | Found Prototype Launcher 18386 | -4/Factory | Identified Com. Tesla Bomb Launcher 18392 | -4/Factory | Found Com. Tesla Bomb Launcher 18394 | -4/Factory | Found Com. Tesla Bomb Launcher 18537 | -4/Factory | Discovered new exit (range 16) 18586 | -4/Factory | Fabricated Hyp. Railgun (x2) 18633 | -4/Factory | Fabricated Hyp. Railgun (x2) 18655 | -4/Factory | Local fabrication network quarantined 18657 | -4/Factory | Identified exit to Extension 18705 | -4/Factory | Entered Extension 18705 | -4/Extension | Accompanied by 15 allies 18784 | -4/Extension | Rescued a captive Derelict 18785 | -4/Extension | Rescued a captive Derelict 18785 | -4/Extension | Central database locked down 18836 | -4/Extension | Identified exit to Cetus 19147 | -4/Extension | Spotted B-86 Titan 19161 | -4/Extension | Spotted B-86 Titan 19172 | -4/Extension | Destroyed B-86 Titan 19173 | -4/Extension | Allies destroyed B-86 Titan 19210 | -4/Extension | Rescued a captive Derelict 19211 | -4/Extension | Rescued a captive Derelict 19230 | -4/Extension | Disrupted transfer network 19235 | -4/Extension | Rescued a captive Derelict 19249 | -4/Extension | Rescued a captive Derelict 19251 | -4/Extension | Rescued a captive Derelict 19257 | -4/Extension | Rescued a captive Derelict 19377 | -4/Extension | Rescued A7 19726 | -4/Extension | Rescued a captive Derelict 19727 | -4/Extension | Rescued a captive Derelict 19809 | -4/Extension | Entered Cetus 19809 | -4/Cetus | Accompanied by 10 allies (A7) 19814 | -4/Cetus | Acquired a Cetus Manufacturing Module code from A7 19821 | -4/Cetus | Spotted Cetus Guard 19821 | -4/Cetus | Spotted Cetus Guard 19825 | -4/Cetus | Destroyed Cetus Guard 19825 | -4/Cetus | Spotted Cetus Guard 19828 | -4/Cetus | Destroyed Cetus Guard 19828 | -4/Cetus | Spotted Cetus Guard 19830 | -4/Cetus | Destroyed Cetus Guard 19880 | -4/Cetus | Started Cetus Manufacturing Module 19896 | -4/Cetus | Escorted A7 to Cetus Mainframe 19905 | -4/Cetus | Manufactured an Enhanced Grunt 19906 | -4/Cetus | Discovered new exit (range 15) 19930 | -4/Cetus | Manufactured an Enhanced Grunt 19955 | -4/Cetus | Manufactured an Enhanced Grunt 19980 | -4/Cetus | Manufactured an Enhanced Grunt 20005 | -4/Cetus | Manufactured an Enhanced Grunt 20040 | -4/Cetus | Allies destroyed A7 20068 | -4/Cetus | Extracted ID and sensor layout for unrecognized location from A7's data core 20069 | -4/Cetus | Found Prototype Device 20069 | -4/Cetus | Identified Exp. Thermal Shield 20122 | -4/Cetus | Spotted Cetus Guard 20122 | -4/Cetus | Spotted Cetus Guard 20125 | -4/Cetus | Spotted Cetus Guard 20128 | -4/Cetus | Destroyed Cetus Guard 20128 | -4/Cetus | Destroyed Cetus Guard 20131 | -4/Cetus | Destroyed Cetus Guard 20132 | -4/Cetus | Destroyed Cetus Guard 20143 | -4/Cetus | Discovered exit to Research (range 15) 20147 | -4/Cetus | Met Revision 17 20173 | -4/Cetus | Identified exit to Archives 20190 | -4/Cetus | Entered Archives 20190 | -4/Archives | Accompanied by 2 allies 20257 | -4/Archives | Discovered new exit (range 16) 20285 | -4/Archives | Identified exit to Hub_04(d) 20296 | -4/Archives | Entered Hub_04(d) 20296 | -4/Hub_04(d) | Accompanied by 2 allies 20758 | -4/Hub_04(d) | Garrison activated, responded to threat 20855 | -4/Hub_04(d) | Network Hub disabled 20860 | -4/Hub_04(d) | Entered Research 20860 | -3/Research | Evolved 2 slots: Utility x2 20972 | -3/Research | Discovered new exit (range 15) 20981 | -3/Research | Identified exit to Armory 21060 | -3/Research | Revision forces began assault on 0b10 21283 | -3/Research | Fabricated Cmb. Antigrav System (x2) 21354 | -3/Research | Fabricated Cmb. Antigrav System (x2) 21437 | -3/Research | Fabricated Exp. Signal Interpreter (x1) 21498 | -3/Research | Build established: Wizard-Gunner 21560 | -3/Research | Research terminal network offline 21645 | -3/Research | Local fabrication network quarantined 21887 | -3/Research | Discovered new exit (range 12) 21896 | -3/Research | Identified exit to Research 21969 | -3/Research | Spotted Striker 22096 | -3/Research | Repaired Hyp. Railgun 22146 | -3/Research | Repaired Exp. Cooling System 22319 | -3/Research | Spotted Striker 22335 | -3/Research | Destroyed Striker 22381 | -3/Research | Discovered exit to Research (range 11) 22484 | -3/Research | Destroyed Executioner 22504 | -3/Research | Found Exp. Targeting Computer 22734 | -3/Research | Spotted Striker 22748 | -3/Research | Destroyed Striker 22834 | -3/Research | Discovered exit to Research (range 11) 22996 | -3/Research | Spotted Striker 23015 | -3/Research | Destroyed Striker 23295 | -3/Research | Build established: Wizard-Mutant 23378 | -3/Research | Spotted Striker 23380 | -3/Research | Spotted Striker 23402 | -3/Research | Self-destructed Last Messages --------------- 23107_ Slug penetrates Wall. 23167_ Acquired 10 matter. 23213_ Slug penetrates Wall. 23223_ Slug penetrates Earth. 23226_ Slug penetrates Wall. 23256_ Acquired Com. HERF Cannon. 23266_ Acquired 60 matter. 23354_ B2:DO&DJO0W6#LGZTZWXUYV2B WCIT 23368_ Slug penetrates Wall. 23368_ Slug penetrates Earth. 23378_ Adv. Hacking Suite destroyed. 23379_ Helical Railgun destroyed. 23386_ Knocked back. 23387_ C-30 ARC bursts open, deploying its payload. 23387_ S-43 Plague unfolds itself. 23388_ Quantum Reactor destroyed. 23388_ Knocked back. 23394_ S-43 Plague destroyed. 23395_ Com. Tesla Bomb Launcher destroyed. 23397_ Adv. Hacking Suite destroyed. Map ----- +----------------------------------------------------+ | # #######??# #?# %[ % #???????? | | #????????# #?# = # #????? | | #????????# #?# #??????? | | #????????# #?### #### ?????? | | #????????# #??? ?####????? | | #????????# #??? #!! ##???????? | | #????????# #??? %|[! # ###?????? | | #????????# #??# [% ! # # #?????? | | ########## #??# != # ######?? | | # # #??# d !#?? | | # # #??## % !%% #?? | | # "" % # #????# #!%!% ] #?? | | " """!*=# #?????# ######![[! #?? | | #### " =%!+% #??????##?????###%[!!+ """ = #?? | | !%%+ =*%!!# #???????????????#!%=!# """ #?? | | #### != # #???????????????#%=!%# """ #?? | | ???# + ##??????????????#%!!!#? ? | | ???# #### #??????????????#=[*!#? ]?? | | ???############ ##?????????????#%!%%#??####### | | ????????????# ##?????########===!#????????# | | ????????????# #?????# [%%!=#????????# | | ?????????????# #?????# !*%=*#????????# | | ?????????????# C #?????# =%!!!#????????# | | ?????????????# d ##???### =%[!=%#????????# | | ?????????????## ;######;# ###!%!!#????????# | | ??????????????# K@; #?#=!==#?????###### | | ??????????????### K ; #?#!!%*####### | | ????????????????# #s #?#!!%[= | | ????????????????# # #?# hK | | ????????????????# # #?#C | | ????????????????# # #?# # | | ????????????????# # #?## ######### # | | ????????????????# = # #??#+#???????# # | | ????????????????#######s### #????????????# # | | ???????????????????# %s #?????E ?????# # | | ???????????????????# s #?????* ???# # | | ???????????????????# #?????* ? + # | | ???????????????????# % #????? ?? ?# # | | ???????????????????# ^^############# ### ### # | | ???????????????????# ^# # #!= # | | ???????????????????# # # #%= # | | ???????????????????# # #* # | | ###????????######??# # = # + | | #????????# ??# + /= # | | ###????????# ?# # # ! # | | ???????????# ?# # #%= # | | ???????????# # # # # | | ???????????# ! # # # ###### | | ???????????# + # | | ???????????# # # # # ###### | +----------------------------------------------------+ Best States ------------- Heat Dissipation 84 Energy Generation 25 Energy Capacity 890 Matter Stores 300 Matter Capacity 800 Sight Range 16 Robot Scan Range 22 Terrain Scan Density 10 Armor Coverage 300 Evasion (%) 51 Targeting Accuracy 12 Target Analysis 6 Armor Integrity Analysis 66 Offensive Hacking 68 Defensive Hacking 12 Item Schematics ----------------- Cmb. Airjet | -9/Materials | Scanalyzed Hacking Suite | -8/Materials | Scanalyzed Adv. Sensor Array | -8/Materials | Hacked Combat Drone Bay | -7/Data Miner | Free Lgt. Regenerative Plating | -7/Data Miner | Free Exp. Terrain Scanner | -7/Data Miner | Free Exp. Targeting Computer | -7/Data Miner | Free Exp. Transmission Jammer | -7/Data Miner | Free Cloaking Device | -7/Data Miner | Free Plasma Sword | -7/Data Miner | Free Kinetic Spear | -7/Data Miner | Free Imp. Armor Integrity Analyzer | -6/Factory | Hacked Imp. Target Analyzer | -6/Factory | Hacked Hyp. Gauss Rifle | -5/Factory | Scanalyzed Cmb. Gravmag System | -5/Factory | Hacked Lrg. Storage Unit | -5/Factory | Hacked Adv. Hacking Suite | -5/Factory | Hacked Hyp. Railgun | -4/Factory | Hacked Exp. Sensor Array | -4/Factory | Hacked Exp. Signal Interpreter | -4/Factory | Hacked Adv. Target Analyzer | -4/Extension | Hacked Adv. System Shield | -4/Extension | Hacked Cmb. Antigrav System | -4/Hub_04(d) | Hacked Exp. Hacking Suite | -4/Hub_04(d) | Hacked Mni. Fusion Reactor | -4/Hub_04(d) | Hacked Adv. Weapon Cycler | -4/Hub_04(d) | Hacked Robot Schematics ------------------ S-27 Virus | -7/Data Miner | Free G-50 Soldier | -7/Data Miner | Free L-41 Fighter | -7/Data Miner | Free X-72 Disruptor | -7/Data Miner | Free H-66 Slayer | -7/Data Miner | Free I-36 Angel | -7/Data Miner | Free I-47 Archangel | -7/Data Miner | Free Fabricated ------------ Cmb. Airjet | x2 | -7/Factory Adv. Sensor Array | x1 | -7/Factory Cmb. Airjet | x2 | -7/Factory Hacking Suite | x1 | -6/Factory Imp. Armor Integrity Analyzer | x1 | -6/Factory Cmb. Gravmag System | x2 | -5/Factory Cmb. Gravmag System | x2 | -5/Factory Cmb. Gravmag System | x2 | -5/Factory Exp. Targeting Computer | x1 | -5/Factory Lrg. Storage Unit | x1 | -5/Factory Hacking Suite | x1 | -5/Factory Hacking Suite | x1 | -5/Factory Adv. Hacking Suite | x1 | -5/Factory Adv. Hacking Suite | x1 | -5/Factory Adv. Hacking Suite | x1 | -5/Factory Centrium Medium Armor Plating | x1 | -4/Factory | Preloaded Hyp. Railgun | x2 | -4/Factory Hyp. Railgun | x2 | -4/Factory Cmb. Antigrav System | x2 | -3/Research Cmb. Antigrav System | x2 | -3/Research Exp. Signal Interpreter | x1 | -3/Research Alien Tech Used ----------------- Core Expander Achievements -------------- None Challenges ------------ None Game ------ Seed HeavyImprovedCanceller Manual? 0 Play Time 03:31:13 Cumulative 1076.3 hours Start 2020.09.16 @ 13:21:31 End 2020.09.16 @ 17:24:13 Sessions 1 Manual Loads 0 Difficulty Rogue Special Mode None Game No. 347 Rogue 347 Adventurer 0 Explorer 0 Win Type - Total 78 Types 14/9/35/5/1/2/12/0/0 Lore% 94 Gallery% 95 Achievement% 85 Wizard Run 0 Options --------- ASCII 0 Keyboard 0 Movement Numpad Keybinds 0 Fullscreen 1 Font 18/SmallcapsGlow Map View 76x50 Tactical HUD 1 Map Filters NONE Filters NONE Steam 1 RUN: b7f2906e-65f5-4e11-b548-94eefe05a99a